[Event "*** SCC Grand Prix: Titled Tuesday Blitz"]
[Site "Chess.com"]
[Date "2020.06.02"]
[Round "4"]
[White "Igrok3069"]
[Black "ShapkinAnatoliy"]
[Result "0-1"]
[WhiteElo "2752"]
[BlackElo "2587"]
[TimeControl "180+1"]
[EndTime "10:41:46 PDT"]
[Termination "ShapkinAnatoliy won on time"]

1. d4 {[%clk 0:03:00.9]} 1... Nf6 {[%clk 0:02:55.4]} 2. Nf3 {[%clk 0:03:00.8]}
2... g6 {[%clk 0:02:55]} 3. g3 {[%clk 0:03:00.7]} 3... Bg7 {[%clk 0:02:54]} 4.
Bg2 {[%clk 0:03:01.3]} 4... O-O {[%clk 0:02:54.6]} 5. O-O {[%clk 0:03:01.3]}
5... c5 {[%clk 0:02:54.8]} 6. c4 {[%clk 0:03:00.6]} 6... cxd4 {[%clk 0:02:54.6]}
7. Nxd4 {[%clk 0:03:00]} 7... Nc6 {[%clk 0:02:55]} 8. Nc3 {[%clk 0:02:59.2]}
8... Qa5 {[%clk 0:02:54.7]} 9. e3 {[%clk 0:02:41.4]} 9... d6 {[%clk 0:02:53.9]}
10. Bd2 {[%clk 0:02:06.2]} 10... Qc5 {[%clk 0:02:45]} 11. Nxc6 {[%clk
0:01:55.6]} 11... bxc6 {[%clk 0:02:43.8]} 12. Rc1 {[%clk 0:01:54.8]} 12... Rb8
{[%clk 0:02:22]} 13. b3 {[%clk 0:01:53.7]} 13... Bd7 {[%clk 0:02:18.3]} 14. Qe2
{[%clk 0:01:50.3]} 14... Qh5 {[%clk 0:02:17.4]} 15. Qxh5 {[%clk 0:01:48.9]}
15... Nxh5 {[%clk 0:02:18.3]} 16. Rfd1 {[%clk 0:01:40.4]} 16... Nf6 {[%clk
0:02:15.9]} 17. e4 {[%clk 0:01:39.3]} 17... Ng4 {[%clk 0:02:14.4]} 18. h3 {[%clk
0:01:37.3]} 18... Ne5 {[%clk 0:02:14.5]} 19. Be3 {[%clk 0:01:37]} 19... c5
{[%clk 0:02:14.3]} 20. Nd5 {[%clk 0:01:36]} 20... Nc6 {[%clk 0:02:12.2]} 21. h4
{[%clk 0:01:35.7]} 21... e6 {[%clk 0:01:59.3]} 22. Nf4 {[%clk 0:01:25.5]} 22...
Nd4 {[%clk 0:01:59]} 23. Kf1 {[%clk 0:01:18.2]} 23... a5 {[%clk 0:01:55.8]} 24.
Ne2 {[%clk 0:01:18.3]} 24... e5 {[%clk 0:01:51.4]} 25. Nc3 {[%clk 0:01:18.3]}
25... a4 {[%clk 0:01:48.2]} 26. bxa4 {[%clk 0:01:15.2]} 26... Rb4 {[%clk
0:01:38.2]} 27. Nb5 {[%clk 0:00:56.5]} 27... Rxa4 {[%clk 0:01:36.1]} 28. Nxd6
{[%clk 0:00:56.7]} 28... Be6 {[%clk 0:01:26.8]} 29. Rd2 {[%clk 0:00:46.4]} 29...
Rd8 {[%clk 0:01:19.7]} 30. Nb7 {[%clk 0:00:45]} 30... Rc8 {[%clk 0:01:11.8]} 31.
Nd6 {[%clk 0:00:43.6]} 31... Rc6 {[%clk 0:01:06.9]} 32. Ne8 {[%clk 0:00:41]}
32... Bh8 {[%clk 0:00:50.7]} 33. Bg5 {[%clk 0:00:41.1]} 33... Bd7 {[%clk
0:00:42.7]} 34. Rb2 {[%clk 0:00:35.6]} 34... Ra8 {[%clk 0:00:39.3]} 35. Rcb1
{[%clk 0:00:29.7]} 35... Bxe8 {[%clk 0:00:33.7]} 36. Rb8 {[%clk 0:00:30.6]}
36... Rc8 {[%clk 0:00:33.9]} 37. Rxc8 {[%clk 0:00:29.8]} 37... Rxc8 {[%clk
0:00:34]} 38. h5 {[%clk 0:00:28.8]} 38... Bg7 {[%clk 0:00:31.4]} 39. h6 {[%clk
0:00:29]} 39... f6 {[%clk 0:00:22.4]} 40. Be3 {[%clk 0:00:23]} 40... Bf8 {[%clk
0:00:19.7]} 41. Bh3 {[%clk 0:00:23.6]} 41... Ra8 {[%clk 0:00:16.4]} 42. Rb6
{[%clk 0:00:24.2]} 42... Bf7 {[%clk 0:00:15.3]} 43. Rxf6 {[%clk 0:00:21.7]}
43... Bxc4+ {[%clk 0:00:15.2]} 44. Kg2 {[%clk 0:00:22.3]} 44... Bxa2 {[%clk
0:00:15.6]} 45. Rb6 {[%clk 0:00:19.9]} 45... Bf7 {[%clk 0:00:14.9]} 46. f4
{[%clk 0:00:18.9]} 46... exf4 {[%clk 0:00:13.5]} 47. gxf4 {[%clk 0:00:18.7]}
47... Re8 {[%clk 0:00:13.9]} 48. e5 {[%clk 0:00:18.2]} 48... Nf5 {[%clk
0:00:14.2]} 49. Bxf5 {[%clk 0:00:13]} 49... gxf5 {[%clk 0:00:15.1]} 50. Kf2
{[%clk 0:00:13.6]} 50... Be6 {[%clk 0:00:14.1]} 51. Rc6 {[%clk 0:00:13.6]} 51...
Bxh6 {[%clk 0:00:13.1]} 52. Rxc5 {[%clk 0:00:12.7]} 52... Bf8 {[%clk 0:00:13.6]}
53. Rc6 {[%clk 0:00:12.7]} 53... Kf7 {[%clk 0:00:12.9]} 54. Rc7+ {[%clk
0:00:13.2]} 54... Re7 {[%clk 0:00:12]} 55. Rc6 {[%clk 0:00:12.9]} 55... Rb7
{[%clk 0:00:12]} 56. Ra6 {[%clk 0:00:12.2]} 56... Be7 {[%clk 0:00:12.1]} 57. Rc6
{[%clk 0:00:11.3]} 57... h5 {[%clk 0:00:12.2]} 58. Kg3 {[%clk 0:00:10.7]} 58...
Rb3 {[%clk 0:00:11.2]} 59. Kf2 {[%clk 0:00:10.1]} 59... h4 {[%clk 0:00:11.4]}
60. Rc1 {[%clk 0:00:07.7]} 60... h3 {[%clk 0:00:06.7]} 61. Rh1 {[%clk
0:00:07.6]} 61... Rb2+ {[%clk 0:00:07.1]} 62. Kg3 {[%clk 0:00:07]} 62... h2
{[%clk 0:00:04.8]} 63. Rxh2 {[%clk 0:00:07.3]} 63... Rxh2 {[%clk 0:00:05.7]} 64.
Kxh2 {[%clk 0:00:08.1]} 64... Kg6 {[%clk 0:00:06.1]} 65. Kg3 {[%clk 0:00:08.2]}
65... Kh5 {[%clk 0:00:07]} 66. Kh3 {[%clk 0:00:06.1]} 66... Bh4 {[%clk
0:00:07.9]} 67. Bg1 {[%clk 0:00:05.5]} 67... Bd5 {[%clk 0:00:08]} 68. Bc5 {[%clk
0:00:05.1]} 68... Bd8 {[%clk 0:00:06.9]} 69. Bd4 {[%clk 0:00:04.9]} 69... Bh4
{[%clk 0:00:06.7]} 70. Be3 {[%clk 0:00:05.1]} 70... Bf3 {[%clk 0:00:06.6]} 71.
Bd4 {[%clk 0:00:05.4]} 71... Bg4+ {[%clk 0:00:07]} 72. Kg2 {[%clk 0:00:05.7]}
72... Kg6 {[%clk 0:00:07.5]} 73. Kh2 {[%clk 0:00:04.1]} 73... Kf7 {[%clk
0:00:07.9]} 74. Kg2 {[%clk 0:00:04.2]} 74... Ke6 {[%clk 0:00:08.3]} 75. Be3
{[%clk 0:00:03.5]} 75... Kd5 {[%clk 0:00:08.7]} 76. Bc1 {[%clk 0:00:04]} 76...
Ke4 {[%clk 0:00:09]} 77. Bd2 {[%clk 0:00:04.5]} 77... Be7 {[%clk 0:00:08.7]} 78.
Kg3 {[%clk 0:00:04.4]} 78... Bh5 {[%clk 0:00:08.1]} 79. Bc1 {[%clk 0:00:04.1]}
79... Bf7 {[%clk 0:00:08.4]} 80. Bd2 {[%clk 0:00:04.1]} 80... Bc5 {[%clk
0:00:08.8]} 81. Bc1 {[%clk 0:00:04.1]} 81... Be3 {[%clk 0:00:08.7]} 82. Bxe3
{[%clk 0:00:03.5]} 82... Kxe3 {[%clk 0:00:09.6]} 0-1

[Event "*** SCC Grand Prix: Titled Tuesday Blitz"]
[Site "Chess.com"]
[Date "2020.06.02"]
[Round "4"]
[White "ViktoriyaTarasova"]
[Black "Chessmatus"]
[Result "0-1"]
[WhiteElo "2271"]
[BlackElo "2521"]
[TimeControl "180+1"]
[EndTime "10:41:50 PDT"]
[Termination "Chessmatus won by resignation"]

1. d4 {[%clk 0:03:00.9]} 1... Nf6 {[%clk 0:02:59.7]} 2. c4 {[%clk 0:02:59.4]}
2... g6 {[%clk 0:03:00]} 3. Nc3 {[%clk 0:02:57.2]} 3... d5 {[%clk 0:03:00.2]} 4.
g3 {[%clk 0:02:55.8]} 4... Bg7 {[%clk 0:02:56.1]} 5. Bg2 {[%clk 0:02:51.4]} 5...
dxc4 {[%clk 0:02:44.6]} 6. Nf3 {[%clk 0:02:47.7]} 6... O-O {[%clk 0:02:43.9]} 7.
O-O {[%clk 0:02:40.1]} 7... c6 {[%clk 0:02:30.2]} 8. a4 {[%clk 0:02:39.5]} 8...
Nbd7 {[%clk 0:02:25.3]} 9. Nd2 {[%clk 0:02:37.9]} 9... e5 {[%clk 0:02:07.4]} 10.
Nxc4 {[%clk 0:02:32.6]} 10... exd4 {[%clk 0:02:07.5]} 11. Qxd4 {[%clk
0:02:33.2]} 11... Nd5 {[%clk 0:02:07.6]} 12. Qd3 {[%clk 0:02:27.7]} 12... Nc5
{[%clk 0:02:05.2]} 13. Qf3 {[%clk 0:02:26.5]} 13... Nb3 {[%clk 0:01:53.3]} 14.
Rb1 {[%clk 0:02:24.3]} 14... Nd4 {[%clk 0:01:37.8]} 15. Qd3 {[%clk 0:02:14.8]}
15... Nb4 {[%clk 0:01:26.3]} 16. Qd1 {[%clk 0:02:12.3]} 16... Be6 {[%clk
0:01:22.8]} 17. Ne3 {[%clk 0:01:58.3]} 17... Qe7 {[%clk 0:01:22.1]} 18. f4
{[%clk 0:01:46.7]} 18... Rad8 {[%clk 0:01:13.8]} 19. Qe1 {[%clk 0:01:45.6]}
19... Ndc2 {[%clk 0:01:04.7]} 20. Nxc2 {[%clk 0:01:42.9]} 20... Nxc2 {[%clk
0:01:05.6]} 21. Qf2 {[%clk 0:01:42.5]} 21... Bf5 {[%clk 0:01:06.1]} 22. Kh1
{[%clk 0:01:25.3]} 22... Bd4 {[%clk 0:00:53.5]} 23. Qf3 {[%clk 0:01:19.1]} 23...
Ne3 {[%clk 0:00:51.3]} 24. Bxe3 {[%clk 0:01:16.7]} 24... Qxe3 {[%clk 0:00:48.2]}
25. Qxe3 {[%clk 0:01:14.5]} 25... Bxe3 {[%clk 0:00:48.4]} 26. Rbd1 {[%clk
0:01:15.1]} 26... Bc2 {[%clk 0:00:48.4]} 27. Rxd8 {[%clk 0:01:13.8]} 27... Rxd8
{[%clk 0:00:49.3]} 28. Be4 {[%clk 0:01:10.1]} 28... Rd2 {[%clk 0:00:42.5]} 29.
Bxc2 {[%clk 0:00:46.7]} 29... Rxc2 {[%clk 0:00:43.4]} 30. Rd1 {[%clk 0:00:45.9]}
30... Rxb2 {[%clk 0:00:40.6]} 31. Ne4 {[%clk 0:00:46.5]} 31... Kg7 {[%clk
0:00:39.1]} 32. Rd7 {[%clk 0:00:42.7]} 32... b5 {[%clk 0:00:23.6]} 33. axb5
{[%clk 0:00:35]} 33... cxb5 {[%clk 0:00:23.7]} 34. Ng5 {[%clk 0:00:35]} 34... b4
{[%clk 0:00:20.8]} 35. Rxf7+ {[%clk 0:00:34]} 35... Kg8 {[%clk 0:00:21.2]} 36.
Re7 {[%clk 0:00:33.4]} 36... b3 {[%clk 0:00:16.8]} 37. Rxe3 {[%clk 0:00:24.4]}
37... Rb1+ {[%clk 0:00:15.5]} 38. Kg2 {[%clk 0:00:24.1]} 38... a5 {[%clk
0:00:15.9]} 39. Re8+ {[%clk 0:00:21.6]} 39... Kg7 {[%clk 0:00:15.8]} 40. Re7+
{[%clk 0:00:22.2]} 40... Kf8 {[%clk 0:00:14.4]} 41. Ra7 {[%clk 0:00:20.3]} 41...
b2 {[%clk 0:00:14.2]} 42. Nxh7+ {[%clk 0:00:20.4]} 42... Ke8 {[%clk 0:00:14.1]}
43. Nf6+ {[%clk 0:00:21]} 43... Kd8 {[%clk 0:00:14.6]} 44. Nd5 {[%clk
0:00:15.6]} 44... Rc1 {[%clk 0:00:12.1]} 45. Rb7 {[%clk 0:00:12.7]} 45... b1=Q
{[%clk 0:00:12.1]} 46. Rxb1 {[%clk 0:00:13.2]} 46... Rxb1 {[%clk 0:00:13]} 47.
Nc3 {[%clk 0:00:13.2]} 47... Rb3 {[%clk 0:00:12.9]} 48. Na4 {[%clk 0:00:12.7]}
48... Rb4 {[%clk 0:00:12.8]} 49. Nc5 {[%clk 0:00:12.3]} 49... a4 {[%clk
0:00:12.3]} 50. Nxa4 {[%clk 0:00:12.5]} 50... Rxa4 {[%clk 0:00:12.9]} 51. h4
{[%clk 0:00:12.6]} 51... Ke7 {[%clk 0:00:13.4]} 52. Kf3 {[%clk 0:00:13]} 52...
Kf6 {[%clk 0:00:13.9]} 53. e3 {[%clk 0:00:13.4]} 53... Kf5 {[%clk 0:00:13.5]}
54. g4+ {[%clk 0:00:13.4]} 54... Kf6 {[%clk 0:00:14.1]} 55. Kg3 {[%clk
0:00:12.3]} 55... Ra1 {[%clk 0:00:13.2]} 56. Kf3 {[%clk 0:00:12.9]} 56... Rh1
{[%clk 0:00:13.5]} 57. Kg3 {[%clk 0:00:12.8]} 57... Rg1+ {[%clk 0:00:13.8]} 58.
Kf3 {[%clk 0:00:12.9]} 58... Rf1+ {[%clk 0:00:13.3]} 59. Kg3 {[%clk 0:00:13]}
59... Rb1 {[%clk 0:00:13.5]} 60. Kf3 {[%clk 0:00:12.9]} 60... Rb4 {[%clk
0:00:13.6]} 61. Kg3 {[%clk 0:00:12.7]} 61... Ke6 {[%clk 0:00:14]} 62. Kf3 {[%clk
0:00:13.1]} 62... Kd5 {[%clk 0:00:14.3]} 63. h5 {[%clk 0:00:12.9]} 63... gxh5
{[%clk 0:00:14.3]} 64. gxh5 {[%clk 0:00:13.5]} 64... Rb6 {[%clk 0:00:14.6]} 65.
Kg4 {[%clk 0:00:13.4]} 65... Ke6 {[%clk 0:00:14.9]} 66. Kg5 {[%clk 0:00:13.4]}
66... Kf7 {[%clk 0:00:15.1]} 67. f5 {[%clk 0:00:13]} 67... Rb1 {[%clk
0:00:14.6]} 68. e4 {[%clk 0:00:12.2]} 68... Rg1+ {[%clk 0:00:15.1]} 69. Kf4
{[%clk 0:00:12.4]} 69... Kg7 {[%clk 0:00:14.6]} 70. e5 {[%clk 0:00:12.4]} 70...
Rf1+ {[%clk 0:00:14.8]} 71. Ke4 {[%clk 0:00:11.8]} 71... Kh6 {[%clk 0:00:15.1]}
72. e6 {[%clk 0:00:11.9]} 72... Re1+ {[%clk 0:00:14.9]} 73. Kd5 {[%clk
0:00:11.8]} 73... Kg7 {[%clk 0:00:10.8]} 74. h6+ {[%clk 0:00:10]} 74... Kxh6
{[%clk 0:00:10.4]} 75. Kd6 {[%clk 0:00:09.5]} 75... Kg7 {[%clk 0:00:10.6]} 76.
Kd7 {[%clk 0:00:07.8]} 76... Kf6 {[%clk 0:00:10.4]} 77. Kd6 {[%clk 0:00:07.6]}
77... Re5 {[%clk 0:00:09.7]} 78. Kd7 {[%clk 0:00:07.3]} 78... Rd5+ {[%clk
0:00:08.1]} 79. Kc6 {[%clk 0:00:07]} 79... Rd1 {[%clk 0:00:08.1]} 80. Kc7 {[%clk
0:00:07]} 80... Rd5 {[%clk 0:00:07.5]} 81. Kc6 {[%clk 0:00:07]} 81... Rxf5
{[%clk 0:00:07.7]} 82. Kd6 {[%clk 0:00:07.1]} 82... Re5 {[%clk 0:00:08.2]} 83.
e7 {[%clk 0:00:07.3]} 83... Rxe7 {[%clk 0:00:08.7]} 84. Kd5 {[%clk 0:00:08]}
84... Re1 {[%clk 0:00:09.3]} 85. Kd4 {[%clk 0:00:08.9]} 85... Kf5 {[%clk
0:00:09.9]} 86. Kc5 {[%clk 0:00:09.5]} 86... Ke5 {[%clk 0:00:10.2]} 87. Kc6
{[%clk 0:00:10.4]} 87... Rd1 {[%clk 0:00:10.8]} 88. Kc7 {[%clk 0:00:10.6]} 88...
Ke6 {[%clk 0:00:11.1]} 0-1

[Event "*** SCC Grand Prix: Titled Tuesday Blitz"]
[Site "Chess.com"]
[Date "2020.06.02"]
[Round "4"]
[White "Vision_64"]
[Black "Irochka83"]
[Result "0-1"]
[WhiteElo "2146"]
[BlackElo "2401"]
[TimeControl "180+1"]
[EndTime "10:41:54 PDT"]
[Termination "Irochka83 won by resignation"]

1. e4 {[%clk 0:03:00.3]} 1... c5 {[%clk 0:02:59.5]} 2. Nf3 {[%clk 0:03:00.1]}
2... d6 {[%clk 0:03:00.1]} 3. d4 {[%clk 0:02:59.9]} 3... cxd4 {[%clk 0:03:00.7]}
4. Nxd4 {[%clk 0:03:00.8]} 4... Nf6 {[%clk 0:03:01.2]} 5. Nc3 {[%clk 0:03:01.3]}
5... Nc6 {[%clk 0:03:01.8]} 6. Bg5 {[%clk 0:02:56.8]} 6... e6 {[%clk 0:03:01.7]}
7. f4 {[%clk 0:02:55.8]} 7... a6 {[%clk 0:02:43.6]} 8. Nxc6 {[%clk 0:02:44.8]}
8... bxc6 {[%clk 0:02:43.5]} 9. e5 {[%clk 0:02:45.2]} 9... dxe5 {[%clk
0:02:43.5]} 10. Qxd8+ {[%clk 0:02:38.1]} 10... Kxd8 {[%clk 0:02:43.6]} 11. fxe5
{[%clk 0:02:38.3]} 11... h6 {[%clk 0:02:44.2]} 12. Bh4 {[%clk 0:02:18.8]} 12...
g5 {[%clk 0:02:43]} 13. O-O-O+ {[%clk 0:02:17]} 13... Nd5 {[%clk 0:02:27.3]} 14.
Bg3 {[%clk 0:02:13.4]} 14... h5 {[%clk 0:01:58.2]} 15. Ne4 {[%clk 0:02:11]}
15... h4 {[%clk 0:01:52.1]} 16. Bf2 {[%clk 0:02:10.3]} 16... Kc7 {[%clk
0:01:41.9]} 17. c4 {[%clk 0:01:46.5]} 17... Nf4 {[%clk 0:01:19.6]} 18. Nxg5
{[%clk 0:01:37.1]} 18... Bh6 {[%clk 0:01:16.7]} 19. Ne4 {[%clk 0:01:18]} 19...
Nd3+ {[%clk 0:00:55]} 20. Kb1 {[%clk 0:01:16.4]} 20... Nxf2 {[%clk 0:00:47.1]}
21. Nxf2 {[%clk 0:01:17.3]} 21... c5 {[%clk 0:00:25.8]} 22. Ne4 {[%clk
0:01:09.4]} 22... Bb7 {[%clk 0:00:26.1]} 23. Nxc5 {[%clk 0:01:06.6]} 23... Bc6
{[%clk 0:00:26]} 24. Be2 {[%clk 0:00:37.3]} 24... Bxg2 {[%clk 0:00:21.7]} 25.
Rhg1 {[%clk 0:00:37.8]} 25... h3 {[%clk 0:00:20.9]} 26. Nb3 {[%clk 0:00:18.5]}
26... Bf4 {[%clk 0:00:14.1]} 27. Rgf1 {[%clk 0:00:18.3]} 27... Bxf1 {[%clk
0:00:10.8]} 28. Rxf1 {[%clk 0:00:18.1]} 28... Bxh2 {[%clk 0:00:10.7]} 29. Rxf7+
{[%clk 0:00:18.1]} 29... Kd8 {[%clk 0:00:09.8]} 30. Nc5 {[%clk 0:00:16.4]} 30...
Bxe5 {[%clk 0:00:07.1]} 31. Nxe6+ {[%clk 0:00:14.5]} 31... Ke8 {[%clk
0:00:07.5]} 32. Rf5 {[%clk 0:00:13.2]} 32... h2 {[%clk 0:00:07.1]} 33. Bf3
{[%clk 0:00:13.1]} 33... h1=Q+ {[%clk 0:00:01.9]} 34. Bxh1 {[%clk 0:00:13.4]}
34... Rxh1+ {[%clk 0:00:02.5]} 35. Kc2 {[%clk 0:00:14.1]} 35... Bd6 {[%clk
0:00:02.9]} 36. c5 {[%clk 0:00:12.1]} 36... Rh2+ {[%clk 0:00:03.3]} 37. Kc3
{[%clk 0:00:11.6]} 37... Be7 {[%clk 0:00:03.8]} 38. Nc7+ {[%clk 0:00:11.3]}
38... Kd7 {[%clk 0:00:03.2]} 39. Nxa8 {[%clk 0:00:12.2]} 39... Kc6 {[%clk
0:00:02.5]} 40. Rf7 {[%clk 0:00:12]} 40... Bxc5 {[%clk 0:00:02.6]} 41. Rc7+
{[%clk 0:00:12.2]} 41... Kd6 {[%clk 0:00:02.4]} 42. Rc8 {[%clk 0:00:11.6]} 42...
Rh7 {[%clk 0:00:02.6]} 43. Rd8+ {[%clk 0:00:10.8]} 43... Kc6 {[%clk 0:00:02.3]}
44. Rc8+ {[%clk 0:00:09.8]} 44... Kd6 {[%clk 0:00:02.9]} 45. Rd8+ {[%clk
0:00:09.9]} 45... Kc6 {[%clk 0:00:03.4]} 46. b4 {[%clk 0:00:10.2]} 46... Ba7
{[%clk 0:00:02.7]} 47. Rc8+ {[%clk 0:00:09.8]} 47... Kb7 {[%clk 0:00:02.4]} 48.
Rg8 {[%clk 0:00:09.8]} 48... Rh3+ {[%clk 0:00:02.5]} 49. Kc4 {[%clk 0:00:09.5]}
49... Rh4+ {[%clk 0:00:03]} 50. Kc3 {[%clk 0:00:09.2]} 50... Rh3+ {[%clk
0:00:02.7]} 51. Kc2 {[%clk 0:00:09.4]} 51... Rh2+ {[%clk 0:00:02.6]} 52. Kb3
{[%clk 0:00:09.7]} 52... Rd2 {[%clk 0:00:02.4]} 53. a3 {[%clk 0:00:06.8]} 53...
Rd3+ {[%clk 0:00:02.6]} 54. Kb2 {[%clk 0:00:07]} 54... Rd6 {[%clk 0:00:02.4]}
55. Kb3 {[%clk 0:00:07.1]} 55... Rc6 {[%clk 0:00:02.9]} 56. Kb2 {[%clk
0:00:07.2]} 56... Rc8 {[%clk 0:00:03.1]} 57. Rxc8 {[%clk 0:00:06.4]} 57... Kxc8
{[%clk 0:00:04]} 58. a4 {[%clk 0:00:05.7]} 58... Kb7 {[%clk 0:00:04.2]} 59. b5
{[%clk 0:00:06.6]} 59... a5 {[%clk 0:00:04.6]} 60. Kb3 {[%clk 0:00:06]} 60...
Kxa8 {[%clk 0:00:04.7]} 61. Kc4 {[%clk 0:00:06.5]} 61... Kb7 {[%clk 0:00:05.2]}
62. Kd5 {[%clk 0:00:06.7]} 62... Kc7 {[%clk 0:00:05.5]} 63. Ke5 {[%clk
0:00:06.5]} 63... Bb6 {[%clk 0:00:05]} 64. Kd5 {[%clk 0:00:06.8]} 64... Kd7
{[%clk 0:00:05.7]} 65. Ke5 {[%clk 0:00:06.8]} 65... Bf2 {[%clk 0:00:05.6]} 66.
Kd5 {[%clk 0:00:06.8]} 66... Kc7 {[%clk 0:00:06.1]} 67. Kc4 {[%clk 0:00:05.9]}
67... Kb6 {[%clk 0:00:06.6]} 68. Kd5 {[%clk 0:00:06.1]} 68... Bg1 {[%clk
0:00:06.1]} 69. Kd6 {[%clk 0:00:05.9]} 69... Bh2+ {[%clk 0:00:06.1]} 70. Kd5
{[%clk 0:00:06.3]} 70... Bf4 {[%clk 0:00:04.7]} 71. Ke4 {[%clk 0:00:05.6]} 71...
Bd6 {[%clk 0:00:04.4]} 72. Kd5 {[%clk 0:00:05.8]} 72... Bb4 {[%clk 0:00:05]} 73.
Kc4 {[%clk 0:00:06]} 73... Kc7 {[%clk 0:00:05.1]} 74. Kd5 {[%clk 0:00:06.3]}
74... Kd7 {[%clk 0:00:05.6]} 75. Ke5 {[%clk 0:00:06.3]} 75... Ba3 {[%clk
0:00:06]} 76. Kd5 {[%clk 0:00:06.5]} 76... Bb2 {[%clk 0:00:06.1]} 77. Kc5 {[%clk
0:00:06]} 77... Kc7 {[%clk 0:00:06.4]} 78. Kd5 {[%clk 0:00:05.9]} 78... Kb6
{[%clk 0:00:06.4]} 79. Kd6 {[%clk 0:00:05.7]} 79... Bc1 {[%clk 0:00:05.5]} 80.
Kd5 {[%clk 0:00:05.7]} 80... Ba3 {[%clk 0:00:05.6]} 81. Ke6 {[%clk 0:00:05.2]}
81... Kc5 {[%clk 0:00:04.5]} 82. Kd7 {[%clk 0:00:05.2]} 82... Bc1 {[%clk
0:00:04.5]} 83. Kc7 {[%clk 0:00:04.6]} 83... Kb4 {[%clk 0:00:04.1]} 84. b6
{[%clk 0:00:04.4]} 84... Bf4+ {[%clk 0:00:04.5]} 85. Kc6 {[%clk 0:00:04]} 85...
Kxa4 {[%clk 0:00:05.4]} 86. b7 {[%clk 0:00:02.2]} 86... Kb4 {[%clk 0:00:05.6]}
87. Kd7 {[%clk 0:00:01.9]} 87... a4 {[%clk 0:00:05.9]} 88. Kc8 {[%clk
0:00:02.8]} 88... a3 {[%clk 0:00:06.1]} 89. b8=Q+ {[%clk 0:00:03.7]} 89... Bxb8
{[%clk 0:00:06.4]} 90. Kxb8 {[%clk 0:00:04.6]} 90... a2 {[%clk 0:00:07]} 91. Kb7
{[%clk 0:00:05.5]} 91... a1=Q {[%clk 0:00:06.6]} 0-1